fUSD/lending_fUSD_20260615
["ID","MTS","AMOUNT","RATE_DAILY","PERIOD"]
[425115003,1781529039000,-597.83843506,0.0001415,2]
[425115006,1781529039000,-300.0,0.00014249,2]
[425115008,1781529039000,-1125.94,0.00014249,2]
[425115005,1781529039000,-151.0,0.00014247,2]
[425115010,1781529039000,-493333.82093598,0.0001425,2]
[425115007,1781529039000,-1125.94,0.00014249,2]
[425115009,1781529039000,-571.813968,0.0001425,2]
[425115012,1781529039000,-151.0,0.0001425,2]
[425115011,1781529039000,-151.0,0.0001425,2]
[425115004,1781529039000,-2318.14552739,0.0001421,7]
[425115013,1781529039000,-151.0,0.0001425,2]
[425115048,1781529039000,-350.0,0.0001479,2]
[425115034,1781529039000,-1008.72217085,0.00014563,2]
[425115049,1781529039000,-416.0,0.0001479,2]
[425115074,1781529039000,-196.12000946,0.000149,2]
[425115075,1781529039000,-350.0,0.00014905,2]
[425115077,1781529039000,-287.0,0.00014932,2]
[425115080,1781529039000,-416.0,0.00014954,2]
[425115078,1781529039000,-416.0,0.00014934,2]
[425115081,1781529039000,-459.49374292,0.0001496,2]
[425115082,1781529039000,-416.0,0.00014967,2]
[425115076,1781529039000,-280.0,0.00014926,2]
[425115079,1781529039000,-350.0,0.00014937,2]
[425115091,1781529039000,-365580.5156013,0.00014995,2]
[425115089,1781529039000,-199914.9717554,0.00014995,2]
[425115098,1781529039000,-248.768523,0.00014995,2]
[425115084,1781529039000,-744.10167692,0.00014985,2]
[425115092,1781529039000,-151.0,0.00014995,2]
[425115085,1781529039000,-744.10167692,0.0001499,2]
[425115094,1781529039000,-151.0,0.00014995,2]
[425115086,1781529039000,-744.10167692,0.0001499,2]
[425115090,1781529039000,-5227.1982453,0.00014995,2]
[425115097,1781529039000,-151.0,0.00014995,2]
[425115093,1781529039000,-163.911377,0.00014995,2]
[425115100,1781529039000,-151.0,0.00014995,2]
[425115101,1781529039000,-151.0,0.00014995,2]
[425115099,1781529039000,-151.0,0.00014995,2]
[425115102,1781529039000,-151.0,0.00014995,2]
[425115103,1781529039000,-151.0,0.00014995,2]
[425115047,1781529039000,-416.0,0.00014772,2]
[425115087,1781529039000,-300.0,0.00014994,2]
[425115083,1781529039000,-159.16600637,0.00014983,10]
[425115088,1781529039000,-5991.4469032,0.00014995,2]
[425115072,1781529039000,-325.31580402,0.000149,2]
[425115073,1781529039000,-597.83843502,0.000149,2]
[425115044,1781529039000,-1871.62856404,0.00014699,2]
[425115040,1781529039000,-7922.142,0.0001463,2]
[425115046,1781529039000,-416.0,0.00014731,2]
[425115051,1781529039000,-597.83843502,0.00014793,2]
[425115050,1781529039000,-416.0,0.00014791,2]
[425115054,1781529039000,-200.0,0.00014805,2]
[425115104,1781529039000,-151.0,0.00014995,2]
[425115053,1781529039000,-416.0,0.00014798,2]
[425115057,1781529039000,-250.0,0.00014849,2]
[425115058,1781529039000,-3000.0,0.00014849,2]
[425115056,1781529039000,-300.0,0.00014849,2]
[425115055,1781529039000,-416.0,0.00014825,2]
[425115052,1781529039000,-416.0,0.00014794,2]
[425115064,1781529039000,-165.0,0.0001488,2]
[425115066,1781529039000,-438.0,0.0001489,2]
[425115059,1781529039000,-68835.53221496,0.0001485,2]
[425115067,1781529039000,-377.0,0.00014895,2]
[425115069,1781529039000,-208.44106742,0.000149,2]
[425115070,1781529039000,-415.8474289,0.000149,2]
[425115071,1781529039000,-2491.58515557,0.000149,2]
[425115068,1781529039000,-156.22697791,0.00014895,2]
[425115065,1781529039000,-416.0,0.00014886,2]
[425115062,1781529039000,-416.0,0.00014859,2]
[425115061,1781529039000,-159.00864,0.0001485,2]
[425115060,1781529039000,-159.00863,0.0001485,2]
[425115063,1781529039000,-159.00863,0.0001486,2]
[425115161,1781529040000,-301.13694446,0.00015,3]
[425115169,1781529040000,-634976.5355266,0.00015,2]
[425115167,1781529040000,-647.0,0.00015,2]
[425115160,1781529040000,-200.0,0.00015,2]
[425115163,1781529040000,-937894.44071769,0.00015,2]
[425115159,1781529040000,-504570.57216936,0.00015,2]
[425115165,1781529040000,-549.11,0.00015,2]
[425115164,1781529040000,-3471.46584316,0.00015,3]
[425115157,1781529040000,-927.42,0.00015,2]
[425115155,1781529040000,-3914329.45432478,0.00015,2]
[425115175,1781529040000,-300.0,0.00015,2]
[425115162,1781529040000,-2078520.67078847,0.00015,2]
[425115177,1781529040000,-159.00863,0.00015,2]
[425115179,1781529040000,-159.00864,0.00015,2]
[425115170,1781529040000,-429.19083314,0.00015,2]
[425115168,1781529040000,-200.0,0.00015,2]
[425115171,1781529040000,-151.0,0.00015,2]
[425115166,1781529040000,-1282993.44852874,0.00015,2]
[425115172,1781529040000,-151.0,0.00015,2]
[425115176,1781529040000,-300.85186992,0.00015,2]
[425115173,1781529040000,-2266.45,0.00015,2]
[425115178,1781529040000,-159.00864,0.00015,2]
[425115180,1781529040000,-151.0,0.00015,2]
[425115182,1781529040000,-310.0,0.00015,2]
[425115181,1781529040000,-151.0,0.00015,2]
[425115188,1781529040000,-1229.850269,0.00015,2]
[425115149,1781529040000,-3000.0,0.00014999,2]
[425115174,1781529040000,-300.8940045,0.00015,2]
[425115151,1781529040000,-325.9944543,0.00014999,2]
[425115109,1781529040000,-782.215716,0.00014995,2]
[425115129,1781529040000,-1125.94,0.00014999,2]
[425115105,1781529040000,-151.0,0.00014995,2]
[425115189,1781529040000,-782.215716,0.00015,2]
[425115106,1781529040000,-151.0,0.00014995,2]
[425115107,1781529040000,-151.0,0.00014995,2]
[425115108,1781529040000,-1229.850269,0.00014995,2]
[425115111,1781529040000,-782.215716,0.00014995,2]
[425115117,1781529040000,-416.0,0.00014997,2]
[425115113,1781529040000,-782.215716,0.00014995,2]
[425115115,1781529040000,-782.215716,0.00014995,2]
[425115116,1781529040000,-151.0,0.00014997,2]
[425115119,1781529040000,-1125.94,0.00014999,2]
[425115114,1781529040000,-1229.850269,0.00014995,2]
[425115121,1781529040000,-1125.94,0.00014999,2]
[425115153,1781529040000,-300.0,0.00014999,2]
[425115118,1781529040000,-1125.94,0.00014999,2]
[425115120,1781529040000,-1125.94,0.00014999,2]
[425115124,1781529040000,-1125.94,0.00014999,2]
[425115137,1781529040000,-1125.94,0.00014999,2]
[425115126,1781529040000,-1125.94,0.00014999,2]
[425115143,1781529040000,-1125.94,0.00014999,2]
[425115139,1781529040000,-1125.94,0.00014999,2]
[425115145,1781529040000,-1125.99495802,0.00014999,2]
[425115141,1781529040000,-1125.94,0.00014999,2]
[425115127,1781529040000,-1125.94,0.00014999,2]
[425115131,1781529040000,-1125.94,0.00014999,2]
[425115135,1781529040000,-1125.94,0.00014999,2]
[425115133,1781529040000,-1125.94,0.00014999,2]
[425115147,1781529040000,-250.0,0.00014999,2]
[425115112,1781529040000,-1229.850269,0.00014995,2]
[425115183,1781529040000,-396.9,0.00015,7]
[425115110,1781529040000,-1229.850269,0.00014995,2]
[425115185,1781529040000,-1229.850269,0.00015,2]
[425115228,1781529040000,-151.0,0.00015068,2]
[425115222,1781529040000,-10000.0,0.00015037,2]
[425115223,1781529040000,-543.05,0.00015043,2]
[425115224,1781529040000,-550.15,0.00015054,2]
[425115221,1781529040000,-306.03,0.00015035,2]
[425115230,1781529040000,-151.0,0.00015068,2]
[425115227,1781529040000,-151.0,0.00015068,2]
[425115229,1781529040000,-151.0,0.00015068,2]
[425115226,1781529040000,-151.0,0.00015068,2]
[425115225,1781529040000,-150.0,0.00015068,2]
[425115232,1781529040000,-151.0,0.00015068,2]
[425115242,1781529040000,-306.03,0.00015082,2]
[425115233,1781529040000,-151.0,0.00015068,2]
[425115219,1781529040000,-336.65,0.00015027,2]
[425115235,1781529040000,-151.0,0.00015068,2]
[425115234,1781529040000,-151.0,0.00015068,2]
[425115236,1781529040000,-151.0,0.00015068,2]
[425115231,1781529040000,-151.0,0.00015068,2]
[425115238,1781529040000,-151.0,0.00015068,2]
[425115241,1781529040000,-223.694321,0.00015068,2]
[425115237,1781529040000,-151.0,0.00015068,2]
[425115240,1781529040000,-151.0,0.00015068,2]
[425115239,1781529040000,-151.0,0.00015068,2]
[425115245,1781529040000,-544.88,0.00015085,2]
[425115244,1781529040000,-306.03,0.00015084,2]
[425115248,1781529040000,-550.15,0.00015117,2]
[425115246,1781529040000,-550.15,0.00015086,2]
[425115184,1781529040000,-1229.850269,0.00015,2]
[425115243,1781529040000,-305.92,0.00015084,2]
[425115220,1781529040000,-151.72,0.00015034,2]
[425115247,1781529040000,-10562.43199246,0.000151,2]
[425115213,1781529040000,-1229.850269,0.00015,2]
[425115218,1781529040000,-550.15,0.00015022,2]
[425115187,1781529040000,-500.0,0.00015,2]
[425115186,1781529040000,-782.215716,0.00015,2]
[425115192,1781529040000,-782.215716,0.00015,2]
[425115203,1781529040000,-782.215716,0.00015,2]
[425115202,1781529040000,-1229.850269,0.00015,2]
[425115194,1781529040000,-1229.850269,0.00015,2]
[425115201,1781529040000,-1229.850269,0.00015,2]
[425115197,1781529040000,-782.215716,0.00015,2]
[425115198,1781529040000,-1229.850269,0.00015,2]
[425115199,1781529040000,-782.215716,0.00015,2]
[425115193,1781529040000,-1229.850269,0.00015,2]
[425115196,1781529040000,-1229.850269,0.00015,2]
[425115195,1781529040000,-782.215716,0.00015,2]
[425115190,1781529040000,-1229.850269,0.00015,2]
[425115191,1781529040000,-782.215716,0.00015,2]
[425115209,1781529040000,-1229.850269,0.00015,2]
[425115212,1781529040000,-782.215716,0.00015,2]
[425115210,1781529040000,-782.215716,0.00015,2]
[425115214,1781529040000,-782.215716,0.00015,2]
[425115200,1781529040000,-782.215716,0.00015,2]
[425115208,1781529040000,-782.215716,0.00015,2]
[425115211,1781529040000,-1229.850269,0.00015,2]
[425115204,1781529040000,-1229.850269,0.00015,2]
[425115206,1781529040000,-782.215716,0.00015,2]
[425115217,1781529040000,-700.0,0.0001502,2]
[425115215,1781529040000,-1229.850274,0.00015,2]
[425115205,1781529040000,-782.215716,0.00015,2]
[425115216,1781529040000,-782.215721,0.00015,2]
[425115207,1781529040000,-1229.850269,0.00015,2]
[425115291,1781529041000,-10000.0,0.00015468,2]
[425115287,1781529041000,-1812.14580977,0.00015404,2]
[425115290,1781529041000,-347.54,0.00015464,2]
[425115285,1781529041000,-306.03,0.00015385,2]
[425115288,1781529041000,-360.24,0.00015424,2]
[425115279,1781529041000,-306.03,0.00015346,2]
[425115289,1781529041000,-640.28731075,0.00015429,2]
[425115284,1781529041000,-336.65,0.00015385,2]
[425115282,1781529041000,-306.03,0.0001535,2]
[425115293,1781529041000,-3992.57792136,0.00015566,2]
[425115283,1781529041000,-164.8,0.00015352,2]
[425115286,1781529041000,-10562.43199246,0.000154,2]
[425115292,1781529041000,-1354.26943947,0.00015505,2]
[425115305,1781529041000,-151.72,0.0001575,2]
[425115296,1781529041000,-636.59460219,0.00015633,2]
[425115295,1781529041000,-3010.7,0.00015616,2]
[425115299,1781529041000,-3558.0,0.00015689,2]
[425115301,1781529041000,-1785.96474021,0.00015698,2]
[425115303,1781529041000,-10562.43199246,0.000157,2]
[425115297,1781529041000,-520.0,0.00015651,2]
[425115302,1781529041000,-383.0,0.00015699,2]
[425115298,1781529041000,-685.6,0.00015653,2]
[425115304,1781529041000,-249.13279859,0.00015702,2]
[425115300,1781529041000,-1275.0,0.00015689,2]
[425115306,1781529041000,-2598.36,0.00015758,2]
[425115308,1781529041000,-1555.5,0.00015834,2]
[425115278,1781529041000,-1390.43583142,0.00015329,2]
[425115294,1781529041000,-10562.43199246,0.000156,2]
[425115273,1781529041000,-1500.0,0.00015286,2]
[425115263,1781529041000,-305.92,0.00015237,2]
[425115275,1781529041000,-10562.43199246,0.000153,2]
[425115309,1781529041000,-10562.43199246,0.000159,2]
[425115255,1781529041000,-550.15,0.00015177,2]
[425115250,1781529041000,-543.05,0.00015143,2]
[425115251,1781529041000,-550.15,0.00015147,2]
[425115249,1781529041000,-306.03,0.00015132,2]
[425115256,1781529041000,-306.03,0.00015177,2]
[425115253,1781529041000,-305.92,0.00015163,2]
[425115252,1781529041000,-336.65,0.00015158,2]
[425115254,1781529041000,-652.65,0.00015173,2]
[425115268,1781529041000,-385.68,0.00015262,2]
[425115258,1781529041000,-543.11,0.00015208,2]
[425115257,1781529041000,-550.15,0.00015206,2]
[425115262,1781529041000,-550.15,0.00015234,2]
[425115277,1781529041000,-306.03,0.00015306,2]
[425115260,1781529041000,-306.03,0.00015222,2]
[425115259,1781529041000,-632.36,0.00015212,2]
[425115264,1781529041000,-543.05,0.00015237,2]
[425115266,1781529041000,-544.88,0.00015238,2]
[425115265,1781529041000,-333.96,0.00015238,2]
[425115267,1781529041000,-550.15,0.00015262,2]
[425115269,1781529041000,-366.82,0.00015263,2]
[425115274,1781529041000,-550.15,0.00015289,2]
[425115276,1781529041000,-949.56,0.00015304,2]
[425115280,1781529041000,-306.05,0.00015348,2]
[425115271,1781529041000,-336.65,0.00015276,2]
[425115281,1781529041000,-306.04,0.00015349,2]
[425115270,1781529041000,-306.03,0.00015264,2]
[425115272,1781529041000,-306.03,0.00015286,2]
[425115261,1781529041000,-306.03,0.00015222,2]
[425115319,1781529041000,-10562.43199246,0.000162,2]
[425115311,1781529041000,-495.31,0.00015986,2]
[425115318,1781529041000,-165.499,0.00016025,2]
[425115345,1781529041000,-154.584177,0.00016438,2]
[425115348,1781529041000,-728.300138,0.00016438,2]
[425115349,1781529041000,-728.300138,0.00016438,2]
[425115347,1781529041000,-728.300138,0.00016438,2]
[425115351,1781529041000,-728.300138,0.00016438,2]
[425115350,1781529041000,-728.300138,0.00016438,2]
[425115346,1781529041000,-728.300138,0.00016438,2]
[425115355,1781529041000,-728.300138,0.00016438,2]
[425115356,1781529041000,-728.300138,0.00016438,2]
[425115352,1781529041000,-728.300138,0.00016438,2]
[425115354,1781529041000,-728.300138,0.00016438,2]
[425115353,1781529041000,-728.300138,0.00016438,2]
[425115358,1781529041000,-728.300138,0.00016438,2]
[425115341,1781529041000,-151.0,0.00016438,2]
[425115368,1781529041000,-361.700659,0.00016438,2]
[425115357,1781529041000,-728.300138,0.00016438,2]
[425115359,1781529041000,-728.300138,0.00016438,2]
[425115362,1781529041000,-728.300138,0.00016438,2]
[425115361,1781529041000,-728.300138,0.00016438,2]
[425115360,1781529041000,-728.300138,0.00016438,2]
[425115365,1781529041000,-728.30013,0.00016438,2]
[425115366,1781529041000,-361.700659,0.00016438,2]
[425115363,1781529041000,-728.300138,0.00016438,2]
[425115364,1781529041000,-728.300138,0.00016438,2]
[425115367,1781529041000,-361.700659,0.00016438,2]
[425115371,1781529041000,-361.700659,0.00016438,2]
[425115307,1781529041000,-4725.94835897,0.000158,5]
[425115372,1781529041000,-361.700659,0.00016438,2]
[425115369,1781529041000,-361.700659,0.00016438,2]
[425115340,1781529041000,-151.0,0.00016438,2]
[425115370,1781529041000,-361.700659,0.00016438,2]
[425115338,1781529041000,-152.0,0.00016438,2]
[425115335,1781529041000,-152.0,0.00016438,2]
[425115313,1781529041000,-300.0,0.00016,2]
[425115315,1781529041000,-150.0,0.00016025,2]
[425115312,1781529041000,-10562.43199246,0.00016,2]
[425115316,1781529041000,-150.25,0.00016025,2]
[425115317,1781529041000,-190.0,0.00016025,2]
[425115314,1781529041000,-150.219,0.00016025,2]
[425115320,1781529041000,-11234.0729455,0.00016248,2]
[425115325,1781529041000,-350.0,0.00016423,3]
[425115323,1781529041000,-1613.0535,0.00016382,2]
[425115322,1781529041000,-356.18807184,0.00016262,2]
[425115324,1781529041000,-10562.43199246,0.000164,2]
[425115332,1781529041000,-152.0,0.00016438,2]
[425115329,1781529041000,-152.0,0.00016438,2]
[425115310,1781529041000,-252.89811847,0.00015949,2]
[425115326,1781529041000,-845.9,0.00016438,2]
[425115336,1781529041000,-152.0,0.00016438,2]
[425115344,1781529041000,-151.0,0.00016438,2]
[425115339,1781529041000,-152.0,0.00016438,2]
[425115333,1781529041000,-152.0,0.00016438,2]
[425115327,1781529041000,-268.59,0.00016438,2]
[425115342,1781529041000,-151.0,0.00016438,2]
[425115337,1781529041000,-152.0,0.00016438,2]
[425115334,1781529041000,-152.0,0.00016438,2]
[425115331,1781529041000,-152.0,0.00016438,2]
[425115330,1781529041000,-152.0,0.00016438,2]
[425115321,1781529041000,-6111.0,0.00016251,2]
[425115328,1781529041000,-152.0,0.00016438,2]
[425115343,1781529041000,-151.0,0.00016438,2]
[425115418,1781529042000,-243.42812376,0.00018,2]
[425115419,1781529042000,-245.76595542,0.00018,2]
[425115410,1781529042000,-1230.5552,0.00017655,2]
[425115408,1781529042000,-1230.5552,0.00017526,2]
[425115401,1781529042000,-1230.5552,0.00017141,2]
[425115409,1781529042000,-339.391288,0.00017566,7]
[425115403,1781529042000,-685.6,0.00017218,2]
[425115405,1781529042000,-1230.5552,0.00017398,2]
[425115402,1781529042000,-258.006535,0.00017189,7]
[425115404,1781529042000,-1230.5552,0.00017269,2]
[425115411,1781529042000,-1350.0,0.00017693,2]
[425115416,1781529042000,-281.2,0.000178,2]
[425115421,1781529042000,-500.0,0.00018,2]
[425115413,1781529042000,-1253.96,0.000178,2]
[425115412,1781529042000,-350.0,0.00017719,2]
[425115415,1781529042000,-281.2,0.000178,2]
[425115417,1781529042000,-640.28731075,0.00017876,2]
[425115429,1781529042000,-969.0,0.0001805,2]
[425115420,1781529042000,-350.0,0.00018,2]
[425115422,1781529042000,-501.0,0.00018,2]
[425115424,1781529042000,-1798.80895522,0.00018026,2]
[425115425,1781529042000,-189.0,0.0001805,2]
[425115423,1781529042000,-200.0,0.00018,2]
[425115427,1781529042000,-546.0,0.0001805,2]
[425115406,1781529042000,-1125.99999999,0.00017456,2]
[425115414,1781529042000,-281.2,0.000178,2]
[425115398,1781529042000,-211.329119,0.00016932,7]
[425115388,1781529042000,-15000.0,0.00016471,2]
[425115400,1781529042000,-297.737038,0.00017063,7]
[425115381,1781529042000,-361.700659,0.00016438,2]
[425115382,1781529042000,-361.700659,0.00016438,2]
[425115380,1781529042000,-361.700659,0.00016438,2]
[425115379,1781529042000,-361.700659,0.00016438,2]
[425115376,1781529042000,-361.700659,0.00016438,2]
[425115375,1781529042000,-361.700659,0.00016438,2]
[425115378,1781529042000,-361.700659,0.00016438,2]
[425115377,1781529042000,-361.700659,0.00016438,2]
[425115374,1781529042000,-361.700659,0.00016438,2]
[425115373,1781529042000,-361.700659,0.00016438,2]
[425115383,1781529042000,-361.700659,0.00016438,2]
[425115385,1781529042000,-361.700667,0.00016438,2]
[425115399,1781529042000,-10562.43199246,0.00017,2]
[425115386,1781529042000,-152.0,0.00016438,2]
[425115387,1781529042000,-151.0,0.00016462,2]
[425115394,1781529042000,-192.54,0.00016767,2]
[425115426,1781529042000,-156.0,0.0001805,2]
[425115395,1781529042000,-949.56,0.00016835,2]
[425115390,1781529042000,-632.36,0.00016595,2]
[425115392,1781529042000,-927.42,0.000167,2]
[425115391,1781529042000,-253.59912,0.00016678,7]
[425115389,1781529042000,-10562.43199246,0.000165,2]
[425115393,1781529042000,-10562.43199246,0.000167,2]
[425115397,1781529042000,-1672.7364795,0.0001693,2]
[425115407,1781529042000,-1734.62772924,0.00017478,2]
[425115396,1781529042000,-10562.43199246,0.000169,2]
[425115384,1781529042000,-361.700659,0.00016438,2]
[425115428,1781529042000,-239.0,0.0001805,2]
[425115475,1781529042000,-151.0,0.00019178,2]
[425115431,1781529042000,-382.0,0.0001805,2]
[425115461,1781529042000,-249.0,0.0001905,2]
[425115457,1781529042000,-969.0,0.0001905,2]
[425115464,1781529042000,-2374.0,0.0001905,2]
[425115460,1781529042000,-153.0,0.0001905,2]
[425115467,1781529042000,-1934.38338736,0.00019122,2]
[425115469,1781529042000,-151.0,0.00019178,2]
[425115478,1781529042000,-151.0,0.00019178,2]
[425115471,1781529042000,-151.0,0.00019178,2]
[425115473,1781529042000,-151.0,0.00019178,2]
[425115482,1781529042000,-160.980571,0.00019178,2]
[425115486,1781529042000,-151.0,0.00019178,2]
[425115487,1781529042000,-151.0,0.00019178,2]
[425115455,1781529042000,-546.0,0.0001905,2]
[425115484,1781529042000,-151.0,0.00019178,2]
[425115493,1781529042000,-151.0,0.00019178,2]
[425115491,1781529042000,-151.0,0.00019178,2]
[425115500,1781529042000,-469.301051,0.00019178,2]
[425115495,1781529042000,-151.0,0.00019178,2]
[425115497,1781529042000,-151.0,0.00019178,2]
[425115499,1781529042000,-209.129083,0.00019178,2]
[425115501,1781529042000,-469.301051,0.00019178,2]
[425115504,1781529042000,-469.301051,0.00019178,2]
[425115503,1781529042000,-469.301051,0.00019178,2]
[425115502,1781529042000,-469.301051,0.00019178,2]
[425115505,1781529042000,-469.301051,0.00019178,2]
[425115430,1781529042000,-155.0,0.0001805,2]
[425115489,1781529042000,-151.0,0.00019178,2]
[425115459,1781529042000,-382.0,0.0001905,2]
[425115480,1781529042000,-151.0,0.00019178,2]
[425115462,1781529042000,-282.0,0.0001905,2]
[425115433,1781529042000,-249.0,0.0001805,2]
[425115465,1781529042000,-500.0,0.00019082,7]
[425115439,1781529042000,-845.9,0.0001841,2]
[425115440,1781529042000,-1865.36488656,0.00018574,2]
[425115435,1781529042000,-232.0,0.0001805,2]
[425115436,1781529042000,-2374.0,0.0001805,2]
[425115437,1781529042000,-949.56,0.00018365,2]
[425115434,1781529042000,-282.0,0.0001805,2]
[425115432,1781529042000,-153.0,0.0001805,2]
[425115441,1781529042000,-3558.0,0.00018689,2]
[425115443,1781529042000,-383.0,0.00018699,2]
[425115453,1781529042000,-189.0,0.0001905,2]
[425115442,1781529042000,-1275.0,0.00018689,2]
[425115438,1781529042000,-927.42,0.000184,2]
[425115446,1781529042000,-685.6,0.00018784,2]
[425115463,1781529042000,-232.0,0.0001905,2]
[425115444,1781529042000,-2333.87,0.0001872,2]
[425115456,1781529042000,-239.0,0.0001905,2]
[425115454,1781529042000,-156.0,0.0001905,2]
[425115451,1781529042000,-150.0,0.00019025,2]
[425115450,1781529042000,-150.0,0.00019025,2]
[425115458,1781529042000,-155.0,0.0001905,2]
[425115448,1781529042000,-159.58681891,0.0001891,2]
[425115449,1781529042000,-150.0,0.00019025,2]
[425115445,1781529042000,-501.0,0.00018765,2]
[425115447,1781529042000,-180.0,0.00018859,2]
[425115452,1781529042000,-150.0,0.00019025,2]
[425115562,1781529043000,-80261.0,0.0002,2]
[425115549,1781529043000,-150.0,0.0002,2]
[425115563,1781529043000,-400.0,0.0002,2]
[425115566,1781529043000,-200.0,0.0002,2]
[425115559,1781529043000,-23159.0,0.0002,2]
[425115557,1781529043000,-176841.0,0.0002,2]
[425115548,1781529043000,-300.0,0.00019999,2]
[425115555,1781529043000,-8064.0,0.0002,2]
[425115546,1781529043000,-752.38,0.00019968,2]
[425115558,1781529043000,-599.0,0.0002,2]
[425115560,1781529043000,-941.312626,0.0002,2]
[425115567,1781529043000,-249239.0,0.0002,2]
[425115576,1781529043000,-155.0,0.0002005,2]
[425115565,1781529043000,-153.7061673,0.0002,20]
[425115568,1781529043000,-396.9,0.0002,7]
[425115564,1781529043000,-200.0,0.0002,10]
[425115570,1781529043000,-17029.85,0.0002,2]
[425115580,1781529043000,-282.0,0.0002005,2]
[425115573,1781529043000,-546.0,0.0002005,2]
[425115569,1781529043000,-2000.0,0.0002,7]
[425115571,1781529043000,-189.0,0.0002005,2]
[425115572,1781529043000,-156.0,0.0002005,2]
[425115577,1781529043000,-382.0,0.0002005,2]
[425115579,1781529043000,-249.0,0.0002005,2]
[425115574,1781529043000,-239.0,0.0002005,2]
[425115550,1781529043000,-208.07680433,0.0002,2]
[425115561,1781529043000,-254.37796769,0.0002,2]
[425115556,1781529043000,-1479.0,0.0002,2]
[425115506,1781529043000,-469.301051,0.00019178,2]
[425115553,1781529043000,-100000.0,0.0002,2]
[425115578,1781529043000,-153.0,0.0002005,2]
[425115516,1781529043000,-469.301051,0.00019178,2]
[425115507,1781529043000,-469.301051,0.00019178,2]
[425115508,1781529043000,-469.301051,0.00019178,2]
[425115523,1781529043000,-469.301051,0.00019178,2]
[425115520,1781529043000,-469.301051,0.00019178,2]
[425115509,1781529043000,-469.301051,0.00019178,2]
[425115511,1781529043000,-469.301051,0.00019178,2]
[425115526,1781529043000,-469.301051,0.00019178,2]
[425115513,1781529043000,-469.301051,0.00019178,2]
[425115529,1781529043000,-469.301051,0.00019178,2]
[425115532,1781529043000,-469.301051,0.00019178,2]
[425115547,1781529043000,-151.0,0.00019997,2]
[425115535,1781529043000,-469.301047,0.00019178,2]
[425115534,1781529043000,-469.301051,0.00019178,2]
[425115540,1781529043000,-2005.9555727,0.0001967,2]
[425115539,1781529043000,-501.0,0.00019531,3]
[425115538,1781529043000,-321.0,0.00019452,2]
[425115541,1781529043000,-9766.3189084,0.0001971,2]
[425115544,1781529043000,-2491.58515556,0.00019882,2]
[425115543,1781529043000,-6000.0,0.00019876,3]
[425115542,1781529043000,-152.0,0.0001979,3]
[425115554,1781529043000,-40847.6696064,0.0002,2]
[425115551,1781529043000,-11675.0,0.0002,2]
[425115552,1781529043000,-181.24,0.0002,9]
[425115545,1781529043000,-325.31580401,0.00019882,2]
[425115536,1781529043000,-1000.0,0.00019225,2]
[425115575,1781529043000,-969.0,0.0002005,2]
[425115537,1781529043000,-500.0,0.00019356,7]
[425115581,1781529043000,-232.0,0.0002005,2]
[425115607,1781529043000,-151.0,0.00020218,2]
[425115615,1781529043000,-151.0,0.00020218,2]
[425115609,1781529043000,-209.40437684,0.00020218,2]
[425115610,1781529043000,-209.40437684,0.00020218,2]